lending/lending_fUSD_20240710
["ID","MTS","AMOUNT","RATE_DAILY","PERIOD"]
[331603530,1720578707478,-500.0,0.00013993,2]
[331603531,1720578707487,-271.42,0.00013993,2]
[331603532,1720578707496,-2995.94,0.00013993,2]
[331603533,1720578707506,-971.82,0.00013993,2]
[331603534,1720578707515,-1054.31,0.00013993,2]
[331603535,1720578707524,-2165.91,0.00013993,2]
[331603536,1720578707534,-500.0,0.00013993,2]
[331603537,1720578707543,-607.6,0.00013993,2]
[331603538,1720578707552,-1354.21,0.00013993,2]
[331603539,1720578707562,-1784.17,0.00013993,2]
[331603540,1720578707571,-500.0,0.00013993,2]
[331603541,1720578707580,-500.0,0.00013993,2]
[331603542,1720578707591,-1937.6,0.00013993,2]
[331603543,1720578707600,-516.92,0.00013993,2]
[331603544,1720578707610,-1991.09,0.00013993,2]
[331603545,1720578707619,-1109.41,0.00013993,2]
[331603546,1720578707628,-1472.59,0.00013993,2]
[331603547,1720578707638,-2752.23,0.00013993,2]
[331603548,1720578707647,-500.0,0.00013993,2]
[331603549,1720578707656,-2851.3,0.00013993,2]
[331603550,1720578707665,-500.0,0.00013993,2]
[331603551,1720578707675,-500.0,0.00013993,2]
[331603552,1720578707683,-1647.37,0.00013993,2]
[331603553,1720578707693,-2067.21,0.00013993,2]
[331603554,1720578707702,-1761.2,0.00013993,2]
[331603555,1720578707712,-732.14,0.00013993,2]
[331603556,1720578707721,-1232.3,0.00013993,2]
[331603557,1720578707730,-2391.69,0.00013993,2]
[331603558,1720578707739,-526.95,0.00013993,2]
[331603559,1720578707748,-500.0,0.00013993,2]
[331603560,1720578707758,-547.38,0.00013993,2]
[331603561,1720578707767,-585.5,0.00013993,2]
[331603562,1720578707776,-500.0,0.00013993,2]
[331603563,1720578707785,-541.78587507,0.00013993,2]
[331603564,1720578707794,-500.0,0.00013993,2]
[331603565,1720578707803,-1452.15,0.00013993,2]
[331603566,1720578707813,-1107.7,0.00013993,2]
[331603567,1720578707822,-500.0,0.00013993,2]
[331603568,1720578707831,-1314.31,0.00013993,2]
[331603569,1720578707843,-500.0,0.00013993,2]
[331603570,1720578707856,-500.0,0.00013993,2]
[331603571,1720578707870,-1357.14,0.00013993,2]
[331603572,1720578707881,-1164.74,0.00013993,2]
[331603573,1720578707890,-500.0,0.00013993,2]
[331603574,1720578707900,-1463.89,0.00013993,2]
[331603575,1720578707909,-269.96257117,0.00013993,2]
[331603576,1720578707918,-500.0,0.00013993,2]
[331603577,1720578707927,-2541.37,0.00013993,2]
[331603578,1720578707936,-500.0,0.00013993,2]
[331603579,1720578707945,-500.0,0.00013993,2]
[331603580,1720578707954,-500.0,0.00013993,2]
[331603581,1720578707963,-2269.15,0.00013993,2]
[331603582,1720578707972,-500.0,0.00013993,2]
[331603583,1720578707981,-500.0,0.00013993,2]
[331603584,1720578707991,-500.0,0.00013993,2]
[331603585,1720578708000,-500.0,0.00013993,2]
[331603586,1720578708009,-653.53,0.00013993,2]
[331603587,1720578708019,-677.36,0.00013993,2]
[331603588,1720578708028,-1092.06,0.00013993,2]
[331603589,1720578708039,-500.0,0.00013993,2]
[331603590,1720578708048,-1563.68,0.00013993,2]
[331603591,1720578708057,-706.32,0.00013993,2]
[331603592,1720578708066,-500.0,0.00013993,2]
[331603593,1720578708075,-652.31,0.00013993,2]
[331603594,1720578708084,-1323.65,0.00013993,2]
[331603595,1720578708094,-500.0,0.00013993,2]
[331603596,1720578708103,-3373.37,0.00013993,2]
[331603597,1720578708112,-500.0,0.00013993,2]
[331603598,1720578708121,-500.0,0.00013993,2]
[331603599,1720578708132,-1551.53,0.00013993,2]
[331603600,1720578708141,-500.0,0.00013993,2]
[331603601,1720578708150,-1840.96,0.00013993,2]
[331603602,1720578708159,-500.0,0.00013993,2]
[331603603,1720578708168,-500.0,0.00013993,2]
[331603604,1720578708177,-500.0,0.00013993,2]
[331603605,1720578708186,-500.0,0.00013993,2]
[331603606,1720578708195,-500.0,0.00013993,2]
[331603607,1720578708204,-2752.03,0.00013993,2]
[331603608,1720578708213,-1628.17,0.00013993,2]
[331603609,1720578708222,-500.0,0.00013993,2]
[331603610,1720578708231,-500.0,0.00013993,2]
[331603611,1720578708240,-865.68,0.00013993,2]
[331603612,1720578708249,-576.36,0.00013993,2]
[331603613,1720578708258,-500.0,0.00013993,2]
[331603614,1720578708267,-500.0,0.00013993,2]
[331603615,1720578708276,-500.0,0.00013993,2]
[331603616,1720578708285,-2288.17,0.00013993,2]
[331603617,1720578708294,-500.0,0.00013993,2]
[331603618,1720578708303,-2161.78,0.00013993,2]
[331603619,1720578708312,-630.4,0.00013993,2]
[331603620,1720578708320,-2212.0,0.00013993,2]
[331603621,1720578708329,-500.0,0.00013993,2]
[331603622,1720578708339,-500.0,0.00013993,2]
[331603623,1720578708348,-743.11,0.00013993,2]
[331603624,1720578708357,-500.0,0.00013993,2]
[331603625,1720578708366,-1387.02,0.00013993,2]
[331603626,1720578708375,-885.74,0.00013993,2]
[331603627,1720578708386,-500.0,0.00013993,2]
[331603628,1720578708396,-2201.53,0.00013993,2]
[331603629,1720578708406,-1500.63,0.00013993,2]
[331603630,1720578708419,-2690.13,0.00013993,2]
[331603631,1720578708429,-500.0,0.00013993,2]
[331603632,1720578708439,-755.58,0.00013993,2]
[331603633,1720578708448,-500.0,0.00013993,2]
[331603634,1720578708459,-970.09,0.00013993,2]
[331603635,1720578708469,-500.0,0.00013993,2]
[331603636,1720578708478,-3077.31,0.00013993,2]
[331603637,1720578708487,-500.0,0.00013993,2]
[331603638,1720578708496,-500.0,0.00013993,2]
[331603639,1720578708506,-500.0,0.00013993,2]
[331603640,1720578708515,-507.74,0.00013993,2]
[331603641,1720578708524,-1219.64,0.00013993,2]
[331603642,1720578708533,-3164.67,0.00013993,2]
[331603643,1720578708542,-500.0,0.00013993,2]
[331603644,1720578708551,-500.0,0.00013993,2]
[331603645,1720578708560,-652.98,0.00013993,2]
[331603646,1720578708569,-550.88,0.00013993,2]
[331603647,1720578708579,-1941.67,0.00013993,2]
[331603648,1720578708590,-500.0,0.00013993,2]
[331603649,1720578708599,-2774.62,0.00013993,2]
[331603650,1720578708608,-500.0,0.00013993,2]
[331603651,1720578708617,-500.0,0.00013993,2]
[331603652,1720578708626,-500.0,0.00013993,2]
[331603653,1720578708635,-938.84,0.00013993,2]
[331603654,1720578708644,-500.0,0.00013993,2]
[331603655,1720578708653,-500.0,0.00013993,2]
[331603656,1720578708663,-912.5,0.00013993,2]
[331603657,1720578708672,-500.0,0.00013993,2]
[331603658,1720578708681,-1216.41,0.00013993,2]
[331603659,1720578708690,-1061.39,0.00013993,2]
[331603660,1720578708700,-500.0,0.00013993,2]
[331603661,1720578708710,-2518.94,0.00013993,2]
[331603662,1720578708719,-500.0,0.00013993,2]
[331603663,1720578708728,-500.0,0.00013993,2]
[331603664,1720578708738,-3436.86,0.00013993,2]
[331603665,1720578708747,-500.0,0.00013993,2]
[331603666,1720578708756,-1247.03,0.00013993,2]
[331603667,1720578708765,-1304.47,0.00013993,2]
[331603668,1720578708774,-500.0,0.00013993,2]
[331603669,1720578708784,-500.0,0.00013993,2]
[331603670,1720578708793,-5696.56,0.00013993,2]
[331603671,1720578708802,-711.42,0.00013993,2]
[331603672,1720578708811,-2106.9,0.00013993,2]
[331603673,1720578708820,-639.14,0.00013993,2]
[331603674,1720578708830,-500.0,0.00013993,2]
[331603675,1720578708839,-500.0,0.00013993,2]
[331603676,1720578708848,-2398.73,0.00013993,2]
[331603677,1720578708859,-500.0,0.00013993,2]
[331603678,1720578708868,-500.0,0.00013993,2]
[331603679,1720578708880,-733.34,0.00013993,2]
[331603680,1720578708889,-500.0,0.00013993,2]
[331603681,1720578708898,-507.93,0.00013993,2]
[331603682,1720578708907,-1148.15,0.00013993,2]
[331603683,1720578708916,-727.9,0.00013993,2]
[331603684,1720578708925,-500.0,0.00013993,2]
[331603685,1720578708934,-1772.75,0.00013993,2]
[331603686,1720578708943,-527.91,0.00013993,2]
[331603687,1720578708952,-2234.89,0.00013993,2]
[331603688,1720578708961,-341.67351044,0.00013993,2]
[331603689,1720578708970,-834.6,0.00013993,2]
[331603690,1720578708979,-500.0,0.00013993,2]
[331603691,1720578708988,-500.0,0.00013993,2]
[331603692,1720578708997,-500.0,0.00013993,2]
[331603693,1720578709006,-374.10755465,0.00013993,2]
[331603694,1720578709015,-500.0,0.00013993,2]
[331603695,1720578709024,-500.0,0.00013993,2]
[331603696,1720578709033,-500.0,0.00013993,2]
[331603697,1720578709042,-1143.34,0.00013993,2]
[331603698,1720578709051,-500.25,0.00013993,2]
[331603699,1720578709060,-1170.38,0.00013993,2]
[331603700,1720578709068,-2893.92,0.00013993,2]
[331603701,1720578709078,-1410.52,0.00013993,2]
[331603702,1720578709086,-2703.57,0.00013993,2]
[331603703,1720578709095,-500.0,0.00013993,2]
[331603704,1720578709104,-500.0,0.00013993,2]
[331603705,1720578709113,-500.0,0.00013993,2]
[331603706,1720578709122,-710.8,0.00013993,2]
[331603707,1720578709131,-500.0,0.00013993,2]
[331603708,1720578709142,-924.07,0.00013993,2]
[331603709,1720578709152,-980.01,0.00013993,2]
[331603710,1720578709160,-1580.34,0.00013993,2]
[331603711,1720578709169,-500.0,0.00013993,2]
[331603712,1720578709179,-2432.31,0.00013993,2]
[331603713,1720578709187,-500.0,0.00013993,2]
[331603714,1720578709196,-1464.91,0.00013993,2]
[331603715,1720578709205,-500.0,0.00013993,2]
[331603716,1720578709214,-500.0,0.00013993,2]
[331603717,1720578709223,-500.0,0.00013993,2]
[331603718,1720578709232,-500.0,0.00013993,2]
[331603719,1720578709241,-500.0,0.00013993,2]
[331603720,1720578709250,-2887.55,0.00013993,2]
[331603721,1720578709259,-897.43,0.00013993,2]
[331603722,1720578709268,-1140.5,0.00013993,2]
[331603723,1720578709277,-1197.44,0.00013993,2]
[331603724,1720578709286,-500.0,0.00013993,2]
[331603725,1720578709295,-573.03,0.00013993,2]
[331603726,1720578709304,-2491.04,0.00013993,2]
[331603727,1720578709313,-824.06,0.00013993,2]
[331603728,1720578709322,-500.0,0.00013993,2]
[331603729,1720578709331,-502.79,0.00013993,2]
[331603730,1720578709341,-3605.84,0.00013993,2]
[331603731,1720578709351,-500.0,0.00013993,2]
[331603732,1720578709359,-500.0,0.00013993,2]
[331603733,1720578709368,-500.0,0.00013993,2]
[331603734,1720578709378,-622.46,0.00013993,2]
[331603735,1720578709387,-1513.67,0.00013993,2]
[331603736,1720578709395,-739.12,0.00013993,2]
[331603737,1720578709404,-500.0,0.00013993,2]
[331603738,1720578709413,-901.58,0.00013993,2]
[331603739,1720578709422,-695.45,0.00013993,2]
[331603740,1720578709431,-500.0,0.00013993,2]
[331603741,1720578709440,-500.0,0.00013993,2]
[331603742,1720578709449,-500.0,0.00013993,2]
[331603743,1720578709458,-500.0,0.00013993,2]
[331603744,1720578709467,-3305.33,0.00013993,2]
[331603745,1720578709476,-658.31,0.00013993,2]
[331603746,1720578709485,-500.0,0.00013993,2]
[331603747,1720578709494,-695.74,0.00013993,2]
[331603748,1720578709503,-3723.61,0.00013993,2]
[331603749,1720578709512,-631.74,0.00013993,2]
[331603750,1720578709521,-500.0,0.00013993,2]
[331603751,1720578709530,-500.0,0.00013993,2]
[331603752,1720578709539,-1842.59,0.00013993,2]
[331603753,1720578709548,-500.0,0.00013993,2]
[331603754,1720578709556,-550.23,0.00013993,2]
[331603755,1720578709565,-500.0,0.00013993,2]
[331603756,1720578709575,-500.0,0.00013993,2]
[331603757,1720578709583,-1071.25,0.00013993,2]
[331603758,1720578709593,-1388.45,0.00013993,2]
[331603759,1720578709602,-500.0,0.00013993,2]
[331603760,1720578709611,-500.0,0.00013993,2]
[331603761,1720578709620,-500.0,0.00013993,2]
[331603762,1720578709629,-500.0,0.00013993,2]
[331603763,1720578709638,-3126.15,0.00013993,2]
[331603764,1720578709647,-963.4,0.00013993,2]
[331603765,1720578709655,-500.0,0.00013993,2]
[331603766,1720578709664,-2473.23,0.00013993,2]
[331603767,1720578709673,-500.0,0.00013993,2]
[331603768,1720578709682,-500.0,0.00013993,2]
[331603769,1720578709691,-978.08,0.00013993,2]
[331603770,1720578709700,-2795.73,0.00013993,2]
[331603771,1720578709709,-5532.13,0.00013993,2]
[331603772,1720578709718,-267.81898007,0.00013993,2]
[331603773,1720578709727,-2866.95,0.00013993,2]
[331603774,1720578709736,-500.0,0.00013993,2]
[331603775,1720578709745,-1148.88,0.00013993,2]
[331603776,1720578709754,-809.3,0.00013993,2]
[331603777,1720578709764,-1515.65,0.00013993,2]
[331603778,1720578709773,-500.0,0.00013993,2]
[331603779,1720578709782,-1912.64,0.00013993,2]
[331603780,1720578709791,-3926.91,0.00013993,2]
[331603781,1720578709800,-505.8,0.00013993,2]
[331603782,1720578709810,-500.0,0.00013993,2]
[331603783,1720578709819,-627.06,0.00013993,2]
[331603784,1720578709828,-1067.87,0.00013993,2]
[331603785,1720578709839,-581.02292652,0.00013993,2]
[331603786,1720578709848,-839.35,0.00013993,2]
[331603787,1720578709857,-3821.49,0.00013993,2]
[331603788,1720578709868,-544.95,0.00013993,2]
[331603789,1720578709878,-1604.72,0.00013993,2]
[331603790,1720578709888,-1862.31,0.00013993,2]
[331603791,1720578709899,-500.0,0.00013993,2]
[331603792,1720578709909,-4888.15,0.00013993,2]
[331603793,1720578709919,-500.0,0.00013993,2]
[331603794,1720578709928,-500.0,0.00013993,2]
[331603795,1720578709937,-500.0,0.00013993,2]
[331603796,1720578709946,-1623.67,0.00013993,2]
[331603797,1720578709956,-1273.12,0.00013993,2]
[331603798,1720578709966,-500.0,0.00013993,2]
[331603799,1720578709975,-661.72,0.00013993,2]
[331603800,1720578709984,-500.0,0.00013993,2]
[331603801,1720578709994,-500.0,0.00013993,2]
[331603802,1720578710003,-924.69,0.00013993,2]
[331603803,1720578710013,-597.61,0.00013993,2]
[331603804,1720578710023,-500.0,0.00013993,2]
[331603805,1720578710033,-1501.83,0.00013993,2]
[331603806,1720578710042,-1858.17,0.00013993,2]
[331603807,1720578710052,-500.0,0.00013993,2]
[331603808,1720578710063,-545.13,0.00013993,2]
[331603809,1720578710071,-500.0,0.00013993,2]
[331603810,1720578710267,-500.0,0.00013993,2]
[331603811,1720578710278,-500.0,0.00013993,2]
[331603812,1720578710288,-500.0,0.00013993,2]
[331603813,1720578710298,-500.0,0.00013993,2]
[331603814,1720578710307,-1401.76,0.00013993,2]
[331603815,1720578710318,-500.0,0.00013993,2]
[331603816,1720578710328,-739.11,0.00013993,2]
[331603817,1720578710338,-1061.57,0.00013993,2]
[331603818,1720578710350,-741.03,0.00013993,2]
[331603819,1720578710359,-537.65,0.00013993,2]
[331603820,1720578710368,-684.66,0.00013993,2]
[331603821,1720578710378,-1265.1,0.00013993,2]
[331603822,1720578710387,-500.0,0.00013993,2]
[331603823,1720578710396,-664.94,0.00013993,2]
[331603824,1720578710405,-1170.81,0.00013993,2]
[331603825,1720578710415,-500.0,0.00013993,2]
[331603826,1720578710423,-2691.6,0.00013993,2]
[331603827,1720578710433,-500.0,0.00013993,2]
[331603828,1720578710444,-500.0,0.00013993,2]
[331603829,1720578710455,-575.14,0.00013993,2]
[331603830,1720578710464,-1204.35,0.00013993,2]
[331603831,1720578710473,-500.0,0.00013993,2]
[331603832,1720578710483,-500.0,0.00013993,2]
[331603833,1720578710492,-787.9,0.00013993,2]
[331603834,1720578710503,-924.35,0.00013993,2]
[331603835,1720578710512,-500.0,0.00013993,2]
[331603836,1720578710523,-500.0,0.00013993,2]
[331603837,1720578710534,-1245.72,0.00013993,2]
[331603838,1720578710543,-3616.61,0.00013993,2]
[331603839,1720578710552,-650.77,0.00013993,2]
[331603840,1720578710562,-1304.79,0.00013993,2]
[331603841,1720578710571,-500.0,0.00013993,2]
[331603842,1720578710581,-841.57,0.00013993,2]
[331603843,1720578710592,-500.0,0.00013993,2]
[331603844,1720578710601,-5575.91,0.00013993,2]
[331603845,1720578710610,-1042.86,0.00013993,2]
[331603846,1720578710619,-500.0,0.00013993,2]
[331603847,1720578710630,-500.0,0.00013993,2]
[331603848,1720578710641,-500.0,0.00013993,2]
[331603849,1720578710651,-500.0,0.00013993,2]
[331603850,1720578710661,-1071.56,0.00013993,2]
[331603851,1720578710670,-1264.05,0.00013993,2]
[331603852,1720578710680,-2114.46,0.00013993,2]
[331603853,1720578710689,-500.0,0.00013993,2]
[331603854,1720578710698,-500.0,0.00013993,2]
[331603855,1720578710708,-500.0,0.00013993,2]
[331603856,1720578710717,-538.86,0.00013993,2]
[331603857,1720578710726,-500.0,0.00013993,2]
[331603858,1720578710735,-500.0,0.00013993,2]
[331603859,1720578710745,-500.0,0.00013993,2]
[331603860,1720578710754,-1099.76,0.00013993,2]
[331603861,1720578710763,-3471.64,0.00013993,2]
[331603862,1720578710774,-614.93,0.00013993,2]
[331603863,1720578710784,-500.0,0.00013993,2]
[331603864,1720578710795,-500.0,0.00013993,2]
[331603865,1720578710806,-632.86,0.00013993,2]
[331603866,1720578710817,-500.0,0.00013993,2]
[331603867,1720578710828,-500.0,0.00013993,2]
[331603868,1720578710837,-1814.83,0.00013993,2]
[331603869,1720578710851,-659.18,0.00013993,2]
[331603870,1720578710861,-1436.02,0.00013993,2]
[331603871,1720578710871,-500.0,0.00013993,2]
[331603872,1720578710880,-1085.35,0.00013993,2]
[331603873,1720578710892,-4481.36,0.00013993,2]
[331603874,1720578710902,-500.0,0.00013993,2]
[331603875,1720578710911,-1900.38,0.00013993,2]
[331603876,1720578710921,-2722.72,0.00013993,2]
[331603877,1720578710931,-500.0,0.00013993,2]
[331603878,1720578710946,-500.0,0.00013993,2]
[331603879,1720578710955,-1043.36,0.00013993,2]
[331603880,1720578710965,-927.02,0.00013993,2]
[331603881,1720578710974,-612.29,0.00013993,2]
[331603882,1720578710984,-500.0,0.00013993,2]
[331603883,1720578710993,-500.0,0.00013993,2]
[331603884,1720578711002,-500.0,0.00013993,2]
[331603885,1720578711012,-3154.74,0.00013993,2]
[331603886,1720578711021,-500.0,0.00013993,2]
[331603887,1720578711030,-500.0,0.00013993,2]
[331603888,1720578711039,-3281.01,0.00013993,2]
[331603889,1720578711048,-500.0,0.00013993,2]
[331603890,1720578711057,-500.0,0.00013993,2]
[331603891,1720578711067,-500.0,0.00013993,2]
[331603892,1720578711076,-1356.64,0.00013993,2]
[331603893,1720578711085,-666.44,0.00013993,2]
[331603894,1720578711097,-1501.48,0.00013993,2]
[331603895,1720578711107,-1807.88,0.00013993,2]
[331603896,1720578711116,-500.0,0.00013993,2]
[331603897,1720578711127,-500.0,0.00013993,2]
[331603898,1720578711136,-500.0,0.00013993,2]
[331603899,1720578711145,-500.0,0.00013993,2]
[331603900,1720578711155,-500.0,0.00013993,2]
[331603901,1720578711164,-500.0,0.00013993,2]
[331603902,1720578711173,-1143.16,0.00013993,2]
[331603903,1720578711182,-500.0,0.00013993,2]
[331603904,1720578711192,-500.0,0.00013993,2]
[331603905,1720578711202,-500.0,0.00013993,2]
[331603906,1720578711212,-500.0,0.00013993,2]
[331603907,1720578711222,-1071.26,0.00013993,2]
[331603908,1720578711233,-725.99,0.00013993,2]
[331603909,1720578711242,-568.75,0.00013993,2]
[331603910,1720578711255,-980.17,0.00013993,2]
[331603911,1720578711265,-1193.03,0.00013993,2]
[331603912,1720578711274,-1433.96,0.00013993,2]
[331603913,1720578711283,-500.0,0.00013993,2]
[331603914,1720578711293,-500.0,0.00013993,2]
[331603915,1720578711303,-500.0,0.00013993,2]
[331603916,1720578711313,-1363.71,0.00013993,2]
[331603917,1720578711324,-500.0,0.00013993,2]
[331603918,1720578711334,-968.12,0.00013993,2]
[331603919,1720578711345,-500.0,0.00013993,2]
[331603920,1720578711355,-3207.44,0.00013993,2]
[331603921,1720578711364,-1828.72,0.00013993,2]
[331603922,1720578711374,-717.01,0.00013993,2]
[331603923,1720578711383,-500.0,0.00013993,2]
[331603924,1720578711394,-1258.63,0.00013993,2]
[331603925,1720578711405,-1127.54,0.00013993,2]
[331603926,1720578711415,-745.98,0.00013993,2]
[331603927,1720578711424,-500.0,0.00013993,2]
[331603928,1720578711435,-500.0,0.00013993,2]
[331603929,1720578711444,-500.0,0.00013993,2]
[331603930,1720578711454,-1290.64,0.00013993,2]
[331603931,1720578711464,-571.53,0.00013993,2]
[331603932,1720578711473,-500.0,0.00013993,2]
[331603933,1720578711483,-1292.58,0.00013993,2]
[331603934,1720578711492,-1042.23,0.00013993,2]
[331603935,1720578711502,-500.0,0.00013993,2]
[331603936,1720578711513,-1580.24,0.00013993,2]
[331603937,1720578711524,-1174.42,0.00013993,2]
[331603938,1720578711533,-5426.52,0.00013993,2]
[331603939,1720578711542,-1811.79,0.00013993,2]
[331603940,1720578711551,-1054.05,0.00013993,2]
[331603941,1720578711560,-500.0,0.00013993,2]
[331603942,1720578711570,-500.0,0.00013993,2]
[331603943,1720578711579,-500.0,0.00013993,2]
[331603944,1720578711588,-1125.78,0.00013993,2]
[331603945,1720578711599,-500.0,0.00013993,2]
[331603946,1720578711608,-500.0,0.00013993,2]
[331603947,1720578711618,-500.0,0.00013993,2]
[331603948,1720578711629,-802.8,0.00013993,2]
[331603949,1720578711638,-500.0,0.00013993,2]
[331603950,1720578711647,-500.0,0.00013993,2]
[331603951,1720578711657,-2890.79,0.00013993,2]
[331603952,1720578711667,-1403.19,0.00013993,2]
[331603953,1720578711676,-1793.51,0.00013993,2]
[331603954,1720578711686,-971.81,0.00013993,2]
[331603955,1720578711695,-535.47,0.00013993,2]
[331603956,1720578711705,-4305.73,0.00013993,2]
[331603957,1720578711715,-518.73,0.00013993,2]
[331603958,1720578711724,-943.48,0.00013993,2]
[331603959,1720578711734,-589.11,0.00013993,2]
[331603960,1720578711743,-2193.03,0.00013993,2]
[331603961,1720578711753,-3242.01,0.00013993,2]
[331603962,1720578711762,-500.0,0.00013993,2]
[331603963,1720578711771,-500.0,0.00013993,2]
[331603964,1720578711780,-754.1,0.00013993,2]
[331603965,1720578711790,-2319.09,0.00013993,2]
[331603966,1720578711799,-2661.75,0.00013993,2]
[331603967,1720578711808,-500.0,0.00013993,2]
[331603968,1720578711818,-567.35,0.00013993,2]
[331603969,1720578711827,-689.55,0.00013993,2]
[331603970,1720578711836,-2557.46,0.00013993,2]
[331603971,1720578711848,-500.0,0.00013993,2]
[331603972,1720578711857,-658.27,0.00013993,2]
[331603973,1720578711868,-713.54,0.00013993,2]
[331603974,1720578711878,-502.13,0.00013993,2]
[331603975,1720578711888,-532.0,0.00013993,2]
[331603976,1720578711898,-500.0,0.00013993,2]
[331603977,1720578711907,-1271.47,0.00013993,2]
[331603978,1720578711916,-640.0,0.00013993,2]
[331603979,1720578711926,-1083.72,0.00013993,2]
[331603980,1720578711935,-3740.98,0.00013993,2]
[331603981,1720578711945,-500.0,0.00013993,2]
[331603982,1720578711955,-1248.4,0.00013993,2]
[331603983,1720578711965,-1162.5,0.00013993,2]
[331603984,1720578711974,-518.4,0.00013993,2]
[331603985,1720578711983,-500.0,0.00013993,2]
[331603986,1720578711992,-500.0,0.00013993,2]
[331603987,1720578712002,-500.0,0.00013993,2]
[331603988,1720578712011,-1181.57,0.00013993,2]
[331603989,1720578712021,-1309.73,0.00013993,2]
[331603990,1720578712030,-836.41,0.00013993,2]
[331603991,1720578712040,-1305.44,0.00013993,2]
[331603992,1720578712049,-500.0,0.00013993,2]
[331603993,1720578712058,-500.0,0.00013993,2]
[331603994,1720578712067,-765.33,0.00013993,2]
[331603995,1720578712077,-500.0,0.00013993,2]
[331603996,1720578712086,-3127.47,0.00013993,2]
[331603997,1720578712095,-1479.51,0.00013993,2]
[331603998,1720578712105,-500.0,0.00013993,2]
[331603999,1720578712114,-644.76,0.00013993,2]
[331604000,1720578712123,-794.79,0.00013993,2]
[331604001,1720578712133,-867.35,0.00013993,2]
[331604002,1720578712142,-1986.59,0.00013993,2]
[331604003,1720578712151,-500.0,0.00013993,2]
[331604004,1720578712160,-500.0,0.00013993,2]
[331604005,1720578712169,-500.0,0.00013993,2]
[331604006,1720578712179,-2317.96,0.00013993,2]
[331604007,1720578712187,-2337.29,0.00013993,2]
[331604008,1720578712197,-1041.58,0.00013993,2]
[331604009,1720578712206,-500.0,0.00013993,2]
[331604010,1720578712215,-968.21,0.00013993,2]
[331604011,1720578712224,-500.0,0.00013993,2]
[331604012,1720578712233,-2586.94,0.00013993,2]
[331604013,1720578712243,-1035.93,0.00013993,2]
[331604014,1720578712252,-500.0,0.00013993,2]
[331604015,1720578712261,-1553.64,0.00013993,2]
[331604016,1720578712270,-2080.31,0.00013993,2]
[331604017,1720578712279,-737.45,0.00013993,2]
[331604018,1720578712288,-502.59,0.00013993,2]
[331604019,1720578712297,-500.0,0.00013993,2]
[331604020,1720578712306,-500.0,0.00013993,2]
[331604021,1720578712315,-500.0,0.00013993,2]
[331604022,1720578712324,-2112.92,0.00013993,2]
[331604023,1720578712334,-1923.02,0.00013993,2]
[331604024,1720578712344,-4380.69,0.00013993,2]
[331604025,1720578712353,-892.74,0.00013993,2]
[331604026,1720578712362,-500.0,0.00013993,2]
[331604027,1720578712788,-500.0,0.00013993,2]
[331604028,1720578712802,-500.0,0.00013993,2]
[331604029,1720578712812,-500.0,0.00013993,2]